bitfinex-derivatives/quotes_ETHF0:USTF0_20210705
["timestamp","ask_amount","ask_price","bid_price","bid_amount"]
[1625507430673,5.05947,2174.4,2173.3,57.0974]
[1625507431623,2.8542,2174.4,2173.3,57.0974]
[1625507432333,2.20527,2174.2,2174.0,2.20527]
[1625507432725,2.20527,2174.2,2172.4,14.5399]
[1625507433026,2.20527,2174.2,2171.7,5.0]
[1625507433323,2.20527,2174.2,2171.6,55.5747]
[1625507434326,2.20527,2173.5,2173.3,2.20527]
[1625507434426,5.21647,2173.5,2171.6,55.5747]
[1625507434527,0.20213462,2173.4,2171.6,55.5747]
[1625507434830,0.20213462,2173.4,2169.8,77.0853]
[1625507434928,0.20213462,2173.4,2169.8,76.0853]
[1625507435382,16.816476,2173.3,2169.8,76.0853]
[1625507435491,0.20206639,2173.2,2169.8,76.0853]
[1625507435783,5.20206639,2173.2,2169.8,76.0853]
[1625507435881,16.635002,2173.1,2169.8,76.0853]
[1625507435996,5.0,2173.0,2169.8,76.0853]
[1625507436081,7.59742835,2173.0,2169.8,76.0853]
[1625507436404,2.20527,2171.1,2171.0,2.20527]
[1625507436489,5.17177,2171.1,2171.0,2.20527]
[1625507437103,2.9665,2171.1,2171.0,2.20527]
[1625507437791,2.6207,2172.5,2171.0,2.20527]
[1625507437991,0.20217544,2172.4,2171.0,2.20527]
[1625507438192,0.20215708,2173.3,2171.0,2.20527]
[1625507438311,2.20527,2171.7,2171.5,2.20527]
[1625507438528,2.20527,2171.7,2171.0,2.20527]
[1625507439715,1.0,2173.3,2171.0,2.20527]
[1625507439825,14.3882,2173.4,2171.0,5.43127]
[1625507439963,0.20205579,2173.3,2171.0,5.43127]
[1625507440063,2.36075579,2173.3,2171.0,5.43127]
[1625507440166,0.20204829,2173.2,2171.0,5.43127]
[1625507440364,2.20527,2171.6,2171.5,2.20527]
[1625507440796,2.20527,2171.6,2171.0,2.20527]
[1625507442371,4.41054,2171.1,2171.0,2.20527]
[1625507442579,2.6217,2171.3,2171.0,2.20527]
[1625507442672,1.0,2173.2,2171.0,2.20527]
[1625507442784,0.20220728,2173.2,2171.0,2.20527]
[1625507443474,16.780497,2173.1,2171.0,2.20527]
[1625507443575,0.20225017,2173.0,2171.0,2.20527]
[1625507443672,5.20225017,2173.0,2171.0,2.20527]
[1625507443879,0.20242215,2172.9,2171.0,2.20527]
[1625507443975,17.05295715,2172.9,2171.0,2.20527]
[1625507444081,5.20242277,2172.8,2171.0,2.20527]
[1625507444273,0.20242323,2172.7,2171.0,2.20527]
[1625507444476,2.20527,2171.4,2171.0,2.20527]
[1625507446429,2.20527,2171.4,2170.5,2.20527]
[1625507446430,2.20527,2171.1,2170.5,2.20527]
[1625507448097,2.20527,2171.1,2169.8,76.0853]
[1625507448182,2.20527,2171.1,2169.3,14.6811]
[1625507448283,2.20527,2171.1,2160.8,1.30772692]
[1625507448385,2.20527,2171.1,2167.5,1.0]
[1625507448485,5.18187,2170.1,2169.9,2.20527]
[1625507448583,5.18187,2170.1,2167.6,1.0]
[1625507448686,5.18187,2170.1,2167.5,15.1997]
[1625507450240,5.18187,2170.1,2167.5,20.1997]
[1625507450440,2.20527,2169.5,2169.4,2.20527]
[1625507451510,2.9766,2170.1,2169.4,2.20527]
[1625507451612,14.3274,2170.9,2169.4,2.20527]
[1625507452462,2.20527,2170.0,2169.8,2.20527]
[1625507454467,2.20527,2169.9,2169.8,2.20527]
[1625507454819,2.3259,2170.1,2169.8,2.20527]
[1625507455774,14.3274,2170.9,2169.8,2.20527]
[1625507456075,1.0,2172.8,2169.8,2.20527]
[1625507456178,0.9231,2173.0,2169.8,2.20527]
[1625507456379,15.3056,2172.7,2169.8,2.20527]
[1625507456482,2.20527,2170.9,2170.8,2.20527]
[1625507457431,5.0,2172.2,2170.8,2.20527]
[1625507457530,15.3056,2172.7,2170.8,2.20527]
[1625507458183,16.696754,2172.6,2170.8,2.20527]
[1625507458585,2.20527,2171.6,2171.5,2.20527]
[1625507458687,2.20527,2171.6,2171.5,4.48997]
[1625507459785,2.20527,2171.6,2171.5,2.20527]
[1625507460687,4.88857,2171.6,2171.5,2.20527]
[1625507462548,4.88857,2171.6,2169.8,14.2873]
[1625507462854,4.88857,2171.6,2169.7,48.8123]
[1625507462949,2.20527,2171.6,2169.7,53.8123]
[1625507463293,2.20527,2171.6,2169.7,48.8123]
[1625507463391,5.16977,2171.6,2169.7,45.788]
[1625507464516,2.20527,2171.6,2169.7,50.788]
[1625507464609,2.20527,2171.6,2171.5,4.41054]
[1625507464709,2.20527,2171.6,2171.5,7.80224]
[1625507475495,2.20527,2171.6,2171.5,4.41054]
[1625507477999,15.3056,2172.7,2171.5,4.41054]
[1625507478302,1.0,2173.9,2171.5,4.41054]
[1625507478402,2.8754,2174.7,2171.5,4.41054]
[1625507478504,13.993,2174.9,2171.5,4.41054]
[1625507478704,2.20527,2172.8,2172.7,2.20527]
[1625507480664,4.41054,2172.8,2172.7,2.20527]
[1625507492603,1.0,2174.1,2172.7,2.20527]
[1625507492703,5.0,2174.2,2172.7,2.20527]
[1625507492804,2.20527,2173.5,2173.4,2.20527]
[1625507497692,2.20527,2173.6,2173.4,2.20527]
[1625507497793,1.0,2174.6,2173.4,5.10177]
[1625507497895,14.7677,2174.9,2173.4,5.10177]
[1625507498695,14.7677,2174.9,2174.1,48.9122]
[1625507498797,14.7677,2174.9,2174.1,51.2027]
[1625507498899,14.7677,2174.9,2174.8,4.41054]
[1625507498998,2.20527,2175.1,2174.8,6.92444]
[1625507503064,2.20527,2175.1,2174.1,48.9122]
[1625507504873,2.20527,2175.1,2174.5,2.20527]
[1625507506480,2.20527,2175.1,2174.1,48.9122]
[1625507506589,4.53767,2175.1,2174.1,48.9122]
[1625507506680,9.53767,2175.1,2174.1,48.9122]
[1625507506880,4.41054,2174.2,2174.1,48.9122]
[1625507507182,4.41054,2174.2,2173.9,2.20527]
[1625507508033,4.41054,2174.2,2171.7,20.0791]
[1625507508134,4.41054,2174.2,2171.7,15.0791]
[1625507508733,4.41054,2174.2,2171.5,15.0912]
[1625507508933,2.20527,2173.6,2171.5,15.0912]
[1625507510687,2.20527,2173.6,2171.6,16.641818]
[1625507510797,1.0,2174.0,2171.7,5.0]
[1625507510889,2.20527,2174.1,2173.9,2.20527]
[1625507510988,2.20527,2174.1,2173.9,4.52687]
[1625507511109,15.2098,2174.4,2173.9,4.52687]
[1625507511189,4.759,2175.6,2173.9,4.52687]
[1625507511429,9.759,2175.6,2173.9,4.52687]
[1625507511716,4.759,2175.6,2173.9,4.52687]
[1625507512123,1.0,2176.1,2173.9,4.52687]
[1625507512225,44.812,2176.2,2173.9,4.52687]
[1625507512423,5.0,2176.1,2173.9,4.52687]
[1625507512936,2.20527,2174.7,2174.6,2.20527]
[1625507513034,2.20527,2174.7,2174.6,5.33737]
[1625507515039,40.2146,2176.0,2174.6,5.33737]
[1625507515136,39.2146,2176.0,2174.6,5.33737]
[1625507515941,4.759,2176.2,2174.6,5.33737]
[1625507516039,14.9508,2176.5,2174.6,5.33737]
[1625507516140,5.0,2176.3,2174.6,5.33737]
[1625507516240,5.9305,2176.3,2174.6,5.33737]
[1625507516740,5.9305,2176.3,2174.4,2.20527]
[1625507516840,9.3999,2176.3,2174.4,2.20527]
[1625507516942,2.20527,2174.5,2174.4,2.20527]
[1625507518224,2.20527,2174.5,2174.3,2.20527]
[1625507519868,1.0,2175.8,2174.3,2.20527]
[1625507519987,16.075,2176.4,2174.3,5.57267]
[1625507520074,15.075,2176.4,2174.3,5.57267]
[1625507520479,15.075,2176.4,2175.2,50.9352]
[1625507520652,15.075,2176.4,2175.2,53.2078]
[1625507520852,5.0,2177.1,2175.2,53.2078]
[1625507520952,2.20527,2175.4,2175.3,2.20527]
[1625507521552,2.15657,2175.4,2175.3,2.20527]
[1625507522255,1.0,2177.0,2175.3,2.20527]
[1625507522355,4.759,2177.2,2175.3,5.36167]
[1625507523011,4.759,2177.2,2177.0,2.20527]
[1625507523012,2.20527,2177.1,2177.0,2.20527]
[1625507523603,1.0,2178.8,2177.0,47.69087]
[1625507523706,1.23109264,2178.9,2177.0,51.15077]
[1625507524053,28.9415,2179.0,2177.0,51.15077]
[1625507524508,5.0,2178.9,2177.0,51.15077]
[1625507525013,2.20527,2177.5,2177.4,2.20527]
[1625507525207,28.9415,2179.0,2177.4,2.20527]
[1625507525308,14.3095,2179.0,2177.4,2.20527]
[1625507525608,5.0,2178.9,2177.4,2.20527]
[1625507525859,5.0,2178.9,2177.0,2.20527]
[1625507525957,5.9105,2178.9,2176.4,1.0]
[1625507526059,1.0894052,2177.3,2175.4,15.3057]
[1625507526157,1.0,2178.8,2175.4,15.3057]
[1625507526980,2.20527,2176.8,2176.7,2.20527]
[1625507527076,4.95377,2176.8,2176.7,2.20527]
[1625507527929,4.95377,2176.8,2176.7,42.08937]
[1625507528028,2.20527,2176.8,2176.7,42.08937]
[1625507528840,1.0,2178.3,2176.7,42.08937]
[1625507528951,19.0685,2179.0,2176.7,45.62787]
[1625507528952,1.0,2178.8,2176.7,45.62787]
[1625507529041,2.20527,2178.4,2178.2,4.41054]
[1625507529248,2.20527,2178.6,2178.2,4.41054]
[1625507529367,14.3095,2179.0,2178.2,4.41054]
[1625507529585,1.1,2179.6,2178.2,4.41054]
[1625507530445,1.0,2180.2,2178.2,4.41054]
[1625507530540,20.0272,2180.3,2178.2,4.41054]
[1625507531044,2.20527,2178.8,2178.7,2.20527]
[1625507531359,20.0272,2180.3,2178.7,2.20527]
[1625507531862,20.0272,2180.3,2179.0,41.6043]
[1625507531954,20.0272,2180.3,2179.0,44.4335]
[1625507532194,5.0,2180.3,2179.0,44.4335]
[1625507532401,15.9872,2180.8,2179.0,44.4335]
[1625507532525,1.0,2180.8,2179.0,44.4335]
[1625507533028,2.20527,2179.9,2179.8,2.20527]
[1625507534047,1.0,2181.5,2179.8,2.20527]
[1625507534148,1.0,2181.5,2179.8,5.55337]
[1625507534449,15.1888,2181.6,2179.8,5.55337]
[1625507534576,1.0,2182.4,2179.8,5.55337]
[1625507534665,5.0,2182.4,2179.8,5.55337]
[1625507534765,0.20512601,2182.3,2179.8,5.55337]
[1625507535071,2.20527,2180.3,2180.2,2.20527]
[1625507535177,6.986,2182.4,2180.2,2.20527]
[1625507535371,0.20454286,2182.3,2179.8,5.53837]
[1625507535760,5.20454286,2182.3,2179.8,5.53837]
[1625507535858,16.96687537,2182.2,2179.8,5.53837]
[1625507535956,5.0,2182.1,2179.8,5.53837]
[1625507536056,40.2511,2181.8,2179.0,41.6043]
[1625507536157,5.0,2181.7,2175.2,50.9352]
[1625507536257,0.20466684,2181.6,2175.2,50.9352]
[1625507536357,3.29446684,2181.6,2175.2,50.9352]
[1625507536454,5.20467124,2181.5,2175.2,50.9352]
[1625507536556,5.20467124,2181.5,2176.3,5.0]
[1625507536655,21.89191624,2181.5,2176.3,5.0]
[1625507536755,0.20467063,2181.4,2176.8,1.0]
[1625507536858,14.78907063,2181.4,2176.8,1.0]
[1625507536957,5.0,2181.3,2176.8,1.0]
[1625507537058,2.20527,2178.5,2178.3,2.20527]
[1625507538060,3.0963,2179.6,2178.3,2.20527]
[1625507539024,2.20527,2178.4,2178.3,2.20527]
[1625507539513,5.61127,2178.4,2178.3,2.20527]
[1625507542219,5.61127,2178.4,2176.7,39.8841]
[1625507542622,5.61127,2178.4,2175.5,1.0]
[1625507542722,5.61127,2178.4,2173.4,14.8453]
[1625507543120,2.20527,2177.5,2177.3,2.20527]
[1625507543223,2.20527,2177.7,2177.3,2.20527]
[1625507543629,2.20527,2177.7,2177.3,5.24467]
[1625507545091,2.20527,2177.7,2177.6,2.20527]
[1625507545291,1.0,2179.5,2177.6,2.20527]
[1625507545391,5.0,2179.6,2177.6,2.20527]
[1625507545993,1.0,2180.1,2177.6,2.20527]
[1625507546097,53.8052,2180.3,2177.6,2.20527]
[1625507546195,5.20420692,2180.1,2177.6,2.20527]
[1625507546295,8.08880692,2180.1,2177.6,2.20527]
[1625507546404,7.8846,2180.1,2177.6,2.20527]
[1625507547147,7.8846,2180.1,2178.5,2.20527]
[1625507547148,2.20527,2178.6,2178.5,2.20527]
[1625507547449,2.20527,2178.6,2177.5,52.2712]
[1625507548903,2.20527,2178.6,2177.6,16.70606]
[1625507549102,2.20527,2178.6,2178.5,4.41054]
[1625507549302,8.8846,2180.1,2178.5,4.41054]
[1625507549402,7.8846,2180.1,2178.5,4.41054]
[1625507551107,2.20527,2178.6,2178.5,4.41054]
[1625507551210,4.69887,2178.6,2178.5,4.41054]
[1625507551709,4.69887,2178.6,2177.5,52.2712]
[1625507551868,3.8846,2180.1,2177.6,5.0]
[1625507551935,15.1014,2180.2,2177.6,7.589]
[1625507552413,15.1014,2180.2,2177.7,16.585697]
[1625507553030,15.1014,2180.2,2177.7,21.585697]
[1625507553132,2.20527,2180.1,2180.0,2.20527]
[1625507553532,15.1014,2180.2,2180.0,2.20527]
[1625507553615,14.883,2181.4,2180.0,4.77167]
[1625507553767,7.3686966,2185.0,2180.0,4.77167]
[1625507553812,14.8633,2183.4,2180.0,4.77167]
[1625507553938,0.20402881,2183.2,2180.0,4.77167]
[1625507554040,19.88962881,2183.2,2180.0,4.77167]
[1625507554143,1.30403266,2183.1,2180.0,4.77167]
[1625507554311,0.20401768,2183.0,2180.0,4.77167]
[1625507554518,5.20401768,2183.0,2180.0,4.77167]
[1625507554626,0.20401258,2182.9,2180.0,4.77167]
[1625507554715,16.82885158,2182.9,2180.0,4.77167]
[1625507554814,5.20400634,2182.8,2180.0,4.77167]
[1625507555015,0.20400915,2182.7,2180.0,4.77167]
[1625507555114,2.20527,2180.1,2180.0,4.77167]
[1625507555213,3.2736,2182.0,2180.0,4.77167]
[1625507555316,5.0,2181.9,2180.0,4.77167]
[1625507555414,5.20395794,2181.9,2180.0,4.77167]
[1625507555621,0.20396216,2181.8,2180.0,4.77167]
[1625507555796,0.20396216,2181.8,2180.0,2.5664]
[1625507555892,0.20396216,2181.8,2179.8,2.20527]
[1625507556067,3.02186216,2181.8,2179.8,2.20527]
[1625507556173,5.20399077,2181.7,2179.8,2.20527]
[1625507556315,0.20398664,2181.6,2179.8,2.20527]
[1625507557184,2.20527,2180.3,2179.8,2.20527]
[1625507558295,2.20527,2180.5,2179.8,2.20527]
[1625507558395,2.20527,2180.5,2179.8,4.53457]
[1625507559194,2.20527,2180.5,2180.4,4.41054]
[1625507559295,2.20527,2180.5,2180.4,7.40004]
[1625507559494,2.20527,2180.9,2180.4,7.40004]
[1625507560307,1.0,2182.7,2180.4,7.40004]
[1625507560411,17.9946,2183.2,2180.4,7.40004]
[1625507560607,17.9946,2183.2,2180.4,12.40004]
[1625507560709,0.20355495,2183.1,2180.4,12.40004]
[1625507561009,17.9946,2183.2,2181.8,54.2539]
[1625507561162,13.2356,2183.2,2183.1,4.41054]
[1625507561400,2.20527,2183.4,2183.1,4.41054]
[1625507561760,2.20527,2183.4,2181.8,56.4056]
[1625507561965,2.20527,2183.4,2181.8,54.2539]
[1625507562765,2.20527,2183.4,2180.7,14.6901]
[1625507562864,5.28487,2183.4,2180.7,14.6901]
[1625507563065,0.20306424,2183.3,2180.7,14.6901]
[1625507563164,2.20527,2181.7,2181.6,2.20527]
[1625507563415,4.71867,2181.7,2181.6,2.20527]
[1625507564272,2.5134,2181.7,2181.6,2.20527]
[1625507564374,3.0796,2183.4,2181.6,2.20527]
[1625507564470,0.20282378,2183.3,2181.6,2.20527]
[1625507564671,0.20281898,2183.9,2181.6,2.20527]
[1625507564869,0.20282191,2184.2,2181.6,2.20527]
[1625507564970,0.20282191,2184.2,2181.6,4.92747]
[1625507565172,2.20527,2181.8,2181.6,4.92747]
[1625507565474,2.20527,2181.8,2181.6,2.7222]
[1625507566376,2.20527,2181.8,2181.4,2.20527]
[1625507566587,2.3506,2182.2,2181.4,2.20527]
[1625507566778,2.3506,2182.2,2179.5,1.0]
[1625507566877,2.3506,2182.2,2179.4,14.8288]
[1625507567077,0.20275114,2182.1,2179.4,14.8288]
[1625507567177,2.20527,2180.2,2180.1,2.20527]
[1625507567380,4.41737,2180.2,2180.1,2.20527]
[1625507567579,4.41737,2180.2,2179.9,2.20527]
[1625507567678,4.41737,2180.2,2177.1,13.8942]
[1625507567779,4.41737,2180.2,2177.6,15.2511]
[1625507567982,2.2121,2180.2,2177.7,5.0]
[1625507568180,2.2121,2180.2,2177.6,15.2511]
[1625507568381,2.2121,2180.2,2177.8,16.66609]
[1625507568705,2.2121,2180.2,2177.7,16.568824]
[1625507568793,2.2121,2180.2,2177.6,15.2511]
[1625507568933,2.2121,2180.2,2177.9,16.660885]
[1625507569031,6.0,2181.4,2177.9,16.660885]
[1625507569131,5.0,2181.4,2177.9,16.660885]
[1625507569231,2.20527,2180.3,2180.2,2.20527]
[1625507569431,2.20527,2180.3,2178.4,2.9288]
[1625507569631,3.0373,2180.6,2178.4,2.9288]
[1625507570131,3.0373,2180.6,2178.5,16.604365]
[1625507570683,1.0,2182.0,2178.5,16.604365]
[1625507570781,5.0,2181.2,2178.5,16.604365]
[1625507570881,7.7436,2181.2,2178.5,16.604365]
[1625507571184,7.7436,2181.2,2180.1,2.20527]
[1625507571291,2.7436,2181.2,2180.1,2.20527]
[1625507571696,2.7436,2181.2,2180.1,4.76107]
[1625507571793,14.2676,2181.9,2180.1,4.76107]
[1625507572095,4.759,2183.4,2180.1,4.76107]
[1625507572303,0.20351507,2183.3,2180.2,16.563127]
[1625507573002,5.20351507,2183.3,2180.2,16.563127]
[1625507573107,0.20351413,2183.2,2180.2,16.563127]
[1625507573206,3.54721413,2183.2,2180.2,16.563127]
[1625507573306,2.20527,2181.8,2181.7,2.20527]
[1625507574063,2.20527,2181.8,2180.1,2.5558]
[1625507574713,2.20527,2181.8,2180.2,16.767398]
[1625507575266,2.20527,2181.8,2181.4,2.20527]
[1625507575466,2.20527,2181.8,2181.2,2.20527]
[1625507576671,5.0,2182.5,2181.2,2.20527]
[1625507576773,1.0,2184.2,2181.2,4.96927]
[1625507576875,11.986,2184.4,2181.2,4.96927]
[1625507576975,6.986,2184.4,2181.2,4.96927]
[1625507577074,1.0,2184.6,2181.2,4.96927]
[1625507577275,17.15317,2183.5,2183.1,2.20527]
[1625507577375,17.15317,2183.5,2183.1,4.54917]
[1625507577624,2.20527,2183.5,2183.1,4.54917]
[1625507578027,2.20527,2183.5,2183.1,3.46259905]
[1625507578130,2.20527,2183.5,2183.1,2.3439]
[1625507578535,2.20527,2183.5,2182.1,2.8878]
[1625507579344,2.20527,2182.8,2182.7,2.20527]
[1625507580785,3.186,2183.1,2182.7,2.20527]
[1625507581283,5.39127,2183.1,2183.0,2.20527]
[1625507581938,5.39127,2183.1,2181.4,14.4242]
[1625507582238,5.39127,2183.1,2178.9,1.1]
[1625507582436,5.39127,2183.1,2179.6,47.5234]
[1625507582535,5.39127,2183.1,2179.8,14.5804]
[1625507582738,5.39127,2183.1,2180.2,16.648121]
[1625507583350,7.59654,2183.1,2182.5,2.20527]
[1625507584076,7.59654,2183.1,2182.5,4.92667]
[1625507584156,4.41054,2183.1,2182.5,4.92667]
[1625507584346,14.9088,2184.0,2182.5,4.92667]
[1625507584640,14.9088,2184.0,2182.6,16.752083]
[1625507585341,2.20527,2183.7,2183.6,2.20527]
[1625507586342,2.20527,2183.7,2183.4,2.20527]
[1625507586558,2.20527,2183.7,2181.9,45.9356]
[1625507587174,2.20527,2183.7,2182.0,16.562942]
[1625507587374,2.20527,2183.2,2183.1,2.20527]
[1625507588883,2.20527,2183.2,2181.9,45.9356]
[1625507589398,4.70897,2182.6,2182.5,2.20527]
[1625507590135,4.70897,2182.6,2182.5,18.814958]
[1625507590838,2.9285,2183.8,2182.5,18.814958]
[1625507590938,19.8791,2184.7,2182.5,21.026658]
[1625507591343,2.20527,2183.7,2183.5,2.20527]
[1625507592039,2.20527,2183.7,2183.6,16.653453]
[1625507592161,2.20527,2183.7,2183.6,19.826553]
[1625507592962,2.20527,2183.7,2183.6,3.1731]
[1625507593355,4.41054,2183.7,2183.5,2.20527]
[1625507595306,4.41054,2183.7,2181.9,45.9356]
[1625507595401,2.20527,2183.7,2183.1,2.20527]
[1625507595809,2.20527,2183.7,2183.1,4.52917]
[1625507595999,2.20527,2183.7,2183.2,16.644943]
[1625507597400,2.20527,2183.7,2183.6,4.41054]
[1625507599569,2.20527,2183.7,2183.6,6.56974]
[1625507599971,2.20527,2183.7,2183.6,23.142366]
[1625507600472,2.20527,2183.7,2183.6,18.731826]
[1625507601320,2.20527,2183.7,2183.6,2.1592]
[1625507601420,2.20527,2183.7,2183.6,4.36447]
[1625507601522,2.20527,2183.7,2183.6,2.20527]
[1625507602173,2.20527,2183.7,2182.3,2.6908]
[1625507602577,2.20527,2183.7,2181.9,45.9356]
[1625507602879,2.20527,2183.7,2182.4,16.659013]
[1625507602979,2.20527,2183.7,2182.4,19.455513]
[1625507603082,2.20527,2183.7,2182.4,2.7965]
[1625507603383,2.20527,2183.7,2182.5,16.714217]
[1625507603484,2.20527,2183.7,2183.6,2.20527]
[1625507606091,2.20527,2183.7,2181.9,45.9356]
[1625507606294,4.95217,2183.7,2181.9,45.9356]
[1625507606492,4.95217,2183.7,2181.5,0.9204]
[1625507606593,4.95217,2183.7,2181.1,0.9068]
[1625507606771,4.95217,2183.7,2182.0,16.53332]
[1625507607044,4.95217,2183.7,2181.6,16.709089]
[1625507607344,4.95217,2183.7,2181.4,16.495781]
[1625507607445,4.95217,2183.7,2183.4,2.20527]
[1625507607645,2.20527,2183.7,2183.4,2.20527]
[1625507607745,2.20527,2183.7,2183.5,16.68087]
[1625507608048,2.20527,2183.7,2183.4,2.20527]
[1625507608146,2.20527,2183.7,2183.4,4.47257]
[1625507608698,4.83897,2183.7,2183.4,2.20527]
[1625507609001,4.83897,2183.7,2178.3,0.9103]
[1625507609202,4.83897,2183.7,2180.6,1.0]
[1625507609503,4.83897,2183.7,2182.9,2.20527]
[1625507609504,2.20527,2183.1,2182.9,2.20527]
[1625507609802,2.20527,2183.1,2183.0,16.582981]
[1625507610503,2.6337,2183.7,2183.0,16.582981]
[1625507610604,5.0,2184.2,2183.0,16.582981]
[1625507611413,14.1538,2184.5,2183.0,16.582981]
[1625507611512,2.20527,2183.5,2183.4,2.20527]
[1625507612798,14.1538,2184.5,2183.4,2.20527]
[1625507613068,5.0,2184.6,2183.4,2.20527]
[1625507613178,5.0,2184.4,2183.4,2.20527]
[1625507613468,4.41054,2183.5,2183.4,2.20527]
[1625507613874,2.6697,2185.3,2183.4,2.20527]
[1625507613977,2.6697,2185.3,2183.4,5.16417]
[1625507614227,2.6697,2185.3,2183.4,21.666511]
[1625507614675,4.759,2185.4,2183.4,21.666511]
[1625507614875,5.0,2185.3,2183.4,21.666511]
[1625507615476,2.20527,2184.1,2184.0,2.20527]
[1625507615876,2.20527,2184.1,2183.4,2.20527]
[1625507616888,2.20527,2184.1,2183.5,16.572347]
[1625507617088,2.20527,2184.1,2183.5,19.433847]
[1625507617491,2.20527,2184.1,2183.8,2.20527]
[1625507618796,2.20527,2184.1,2183.9,16.69142]
[1625507618895,4.759,2185.4,2183.9,16.69142]
[1625507618999,14.3041,2185.8,2183.9,16.69142]
[1625507619501,2.20527,2184.7,2184.6,2.20527]
[1625507619599,2.20527,2184.7,2184.6,5.58187]
[1625507619900,2.20527,2184.7,2184.6,22.222445]
[1625507621255,14.3041,2185.8,2184.6,22.222445]
[1625507621556,2.20527,2185.3,2185.2,2.20527]
[1625507621755,2.20527,2185.3,2185.2,1.11983279]
[1625507623522,4.41054,2185.3,2185.2,1.11983279]
[1625507623721,4.41054,2185.3,2184.6,5.58187]
[1625507624375,4.41054,2185.3,2184.7,16.528964]
[1625507625330,1.0,2186.7,2184.7,16.528964]
[1625507625434,14.7514,2186.8,2184.7,16.528964]
[1625507625530,2.20527,2185.8,2185.7,2.20527]
[1625507625830,2.20527,2185.8,2185.7,18.814544]
[1625507627136,2.20527,2185.8,2185.7,2.20527]
[1625507627484,2.20527,2185.8,2185.7,18.836261]
[1625507628597,2.20527,2186.1,2185.7,18.836261]
[1625507628689,2.20527,2186.1,2185.7,21.069661]
[1625507629087,1.0,2187.4,2185.7,21.069661]
[1625507629191,14.558,2187.5,2185.7,21.069661]
[1625507629290,14.558,2187.5,2185.9,43.6653]
[1625507629587,2.20527,2186.7,2186.6,2.20527]
[1625507629791,2.20527,2186.7,2185.7,18.864391]
[1625507629895,2.20527,2186.7,1991.9,1.03381709]
[1625507629896,5.61937,2186.7,2186.0,16.652206]
[1625507630293,5.61937,2186.7,2182.0,1.1]
[1625507630294,5.61937,2186.7,2184.6,1.0]
[1625507630392,5.61937,2186.7,2182.0,1.1]
[1625507630947,5.61937,2186.7,2184.0,16.72471]
[1625507631044,5.61937,2186.7,2184.0,19.55581]
[1625507631296,5.61937,2186.7,2184.1,5.0]
[1625507631396,5.61937,2186.7,2184.1,5.9172]
[1625507631605,2.20527,2186.1,2186.0,2.20527]
[1625507632409,2.20527,2186.1,2186.0,18.8093]
[1625507635288,2.20527,2186.4,2186.0,18.8093]
[1625507635580,4.41054,2186.4,2186.0,18.8093]
[1625507636637,4.41054,2186.4,2186.0,16.60403]
[1625507636942,4.41054,2186.4,2184.3,1.0]
[1625507637032,7.95074,2186.4,2183.1,5.0]
[1625507637133,8.95074,2186.4,2183.7,1.0]
[1625507637632,2.20527,2185.3,2185.2,2.20527]
[1625507637733,3.1521,2185.7,2185.2,2.20527]
[1625507637834,3.5402,2186.4,2185.2,2.20527]
[1625507638053,3.5402,2186.4,2185.3,19.771187]
[1625507638136,1.0,2187.6,2185.3,19.771187]
[1625507638238,14.5763,2187.7,2185.3,3.045]
[1625507638540,14.5763,2187.7,2185.4,16.546257]
[1625507638992,5.0,2187.6,2185.4,16.546257]
[1625507639100,7.6143,2187.6,2185.4,16.546257]
[1625507639494,2.6143,2187.6,2185.3,16.687922]
[1625507639692,2.20527,2186.8,2186.6,2.20527]
[1625507640092,2.20527,2186.8,2186.7,16.561598]
[1625507640547,2.20527,2186.8,2186.6,2.20527]
[1625507640854,2.20527,2186.8,2182.6,1.1]
[1625507640950,5.33247,2186.8,2183.6,5.0]
[1625507641449,5.33247,2186.8,2183.9,5.0]
[1625507641557,5.33247,2186.8,2184.9,16.565089]
[1625507641650,5.46517,2186.1,2186.0,2.20527]
[1625507642149,5.46517,2186.1,2184.1,0.9139]
[1625507642251,5.46517,2186.1,2183.3,5.0]
[1625507642355,5.46517,2186.1,2183.8,45.0641]
[1625507642551,5.46517,2186.1,2183.8,44.0641]
[1625507642761,5.46517,2186.1,2184.9,16.63138]
[1625507642978,3.2599,2186.1,2184.9,16.63138]
[1625507643054,3.2599,2186.1,2184.0,16.735881]
[1625507643353,3.2599,2186.1,2185.0,16.67819]
[1625507643652,2.20527,2185.8,2185.7,2.20527]
[1625507645657,4.41054,2185.8,2185.5,2.20527]
[1625507647373,2.20527,2185.8,2185.5,2.20527]
[1625507647647,2.20527,2185.6,2185.5,2.20527]
[1625507648738,4.94127,2185.6,2185.5,2.20527]
[1625507648943,4.94127,2185.6,2183.9,15.1563]
[1625507649037,4.94127,2185.6,2183.9,14.1563]
[1625507649239,4.94127,2185.6,2182.4,1.0]
[1625507649542,4.94127,2185.6,2182.9,14.8444]
[1625507649642,2.20527,2184.9,2184.8,2.20527]
[1625507651697,4.41054,2184.9,2184.8,2.20527]
[1625507653606,1.0,2186.7,2184.8,2.20527]
[1625507653717,2.20527,2185.7,2185.6,2.20527]
[1625507653802,2.20527,2185.7,2185.6,4.57797]
[1625507655659,4.41054,2185.7,2185.6,4.57797]
[1625507656206,5.0,2186.7,2185.6,4.57797]
[1625507656709,5.0,2186.7,2185.6,5.48247]
[1625507656810,5.0,2186.7,2186.2,42.1701]